Cogmind - Beta 11.1 *** ADVENTURER MODE // 2022.06.03 @ 00:26:54 Player: lobstro Result: Destroyed by Y-45 Defender with Beam Rifle Performance ------------- Evolutions (2) 1000 Regions Visited (7) 1400 Robots Destroyed (53) 265 Value Destroyed (1508) 1508 Prototype IDs (2) 40 Alien Tech Used (0) 0 Bonus (749) 749 TOTAL SCORE: 4962 Bonus ------- High Alert Combat Kills 49 Entered Garrisons 200 Used RIF Installer 500 Cogmind --------- Core Integrity 0/550 Matter 81/300 Energy 100/100 System Corruption 0% Temperature Cool (9) Movement Core (200) Ox3 Location -8/Materials Parts ------- > --- POWER (1) -------- (None) > --- PROPULSION (3) --- (None) > --- UTILITY (4) ------ Medium Storage Unit > --- WEAPON (3) ------- (None) > --- INVENTORY (10) --- Improved Ion Engine Light Nuclear Core Relay Coupler [NC] (34) Relay Coupler [Swarmer] (40) Relay Coupler [Sentry] (21) Peak State ------------ > --- POWER ------------ Improved Ion Engine > --- PROPULSION ------- Light Treads Light Treads Advanced Treads > --- UTILITY ---------- Improved Heat Sink Disposable Heat Sink Medium Storage Unit Advanced Targeting Computer > --- WEAPON ----------- Ion Cannon Ion Cannon Ion Cannon > --- INVENTORY -------- Improved Ion Engine Light Nuclear Core Wheel Wheel Shield Generator Relay Coupler [NC] Relay Coupler [Swarmer] Relay Coupler [Sentry] [Rating: 26] Favorites ----------- Power Improved Ion Engine Engine Improved Ion Engine Propulsion Wheel Treads Light Treads Wheel Wheel Utility Medium Storage Unit Device Improved Heat Sink Storage Medium Storage Unit Processor Visual Processing Unit Weapon Heavy Particle Cannon Energy Cannon Heavy Particle Cannon Ballistic Gun Heavy Assault Rifle Launcher Rocket Launcher Build | -11 -10 -10 -10 -9 -8 -8 -8 ------- Run | Scr Mat Min Exi Min Mat Gar Mat Slots Evolved 4 | . . . . . 4 . . Power . | . . . . . . . . Propulsion 1 | . . . . . 1 . . Utility 2 | . . . . . 2 . . Weapon 1 | . . . . . 1 . . Parts Attached 51 | 8 8 3 2 8 12 4 6 Power 4 | 1 1 1 . . . 1 . Engine 4 | 1 1 1 . . . 1 . Core . | . . . . . . . . Reactor . | . . . . . . . . Propulsion 18 | 3 2 . . 5 5 1 2 Treads 5 | . . . . . 4 1 . Leg . | . . . . . . . . Wheel 13 | 3 2 . . 5 1 . 2 Hover . | . . . . . . . . Flight . | . . . . . . . . Utility 9 | 2 2 . . 1 3 . 1 Device 4 | 1 . . . 1 1 . 1 Storage 2 | 1 1 . . . . . . Processor 3 | . 1 . . . 2 . . Hackware . | . . . . . . . . Protection . | . . . . . . . . Artifact . | . . . . . . . . Weapon 20 | 2 3 2 2 2 4 2 3 Energy Gun . | . . . . . . . . Energy Cannon 8 | . . 2 . 2 1 . 3 Ballistic Gun 10 | 2 3 . 2 . 1 2 . Ballistic Cannon . | . . . . . . . . Launcher 2 | . . . . . 2 . . Special Weapon . | . . . . . . . . Impact Weapon . | . . . . . . . . Slashing Weapon . | . . . . . . . . Piercing Weapon . | . . . . . . . . Special Melee Weapon . | . . . . . . . . Unidentified Prototypes . | . . . . . . . . Parts Lost 24 | . . 1 . 3 3 4 13 Power 3 | . . 1 . . . 1 1 Propulsion 8 | . . . . 2 . 1 5 Utility 5 | . . . . 1 . . 4 Weapon 8 | . . . . . 3 2 3 Highest Loss Streak 10 | . . 1 . 2 2 1 10 To Critical Strikes 2 | . . . . 1 . 1 . Average Slot Usage (%) 97 | . 99 100 100 100 97 90 88 Engine 12 | . 14 14 14 14 9 9 9 Treads 5 | . . . . . 14 27 17 Wheel 22 | . 27 28 28 28 12 . 6 Device 8 | . 8 . . 9 18 18 20 Storage 12 | . 14 14 14 14 9 9 9 Processor 9 | . 5 14 14 4 9 9 1 Energy Cannon 15 | . . 25 12 16 14 6 23 Ballistic Gun 9 | . 28 2 15 11 4 5 1 Launcher 1 | . . . . . 6 7 . Naked Turns . | . . . . . . . . Heaviest Build 39 | 13 23 29 29 30 35 28 39 Greatest Support 62 | 26 20 20 20 32 62 62 62 Greatest Overweight (x) 4 | . 4 1 1 1 . . 1 Average Overweight (x) . | . . 1 1 . . . . Largest Inventory Capacity 10 | 8 10 10 10 10 10 10 10 Average Capacity 9 | 7 8 10 10 10 10 10 10 Most Carried 10 | 5 10 10 9 10 9 9 8 Average Carried 8 | 3 7 9 9 8 5 8 6 Final Capacity 10 | 8 10 10 10 10 10 10 10 Final Carried 10 | 5 10 9 9 10 7 8 5 Class Distribution -------------------- 82% | Mutant 7% | Gunner 4% | Scavenger-Gunner 3% | Scavenger-Mutant Dominant Class ---------------- Mutant | -10/Materials Mutant | -10/Mines Mutant | -10/Exiles Mutant | -9/Mines Gunner | -8/Materials Mutant | -8/Garrison Gunner | -8/Materials Resources | -11 -10 -10 -10 -9 -8 -8 -8 ----------- Run | Scr Mat Min Exi Min Mat Gar Mat Matter Collected 883 | 248 93 119 . 184 134 105 . Remotely . | . . . . . . . . Salvage Created 1343 | 40 28 274 . 246 459 174 122 Parts 108 | 3 8 23 . 24 27 20 3 Haulers Intercepted . | . . . . . . . . Recyclers Shooed . | . . . . . . . . Parts Field Recycled . | . . . . . . . . Retrieved Matter . | . . . . . . . . Parts Self-Destructed . | . . . . . . . . Prevented . | . . . . . . . . Kills | -11 -10 -10 -10 -9 -8 -8 -8 ------- Run | Scr Mat Min Exi Min Mat Gar Mat Combat Hostiles Destroyed 46 | . . 12 . 10 11 11 2 Guns 9 | . . 3 . 6 . . . Cannons 15 | . . 8 . 2 2 1 2 AOE 21 | . . . . 2 9 10 . Classes Destroyed 6 | 1 1 2 . 1 1 . . Tunneler 3 | 2 . . . 1 . . . Watcher 4 | . 2 . . . 2 . . Swarmer 26 | . . 10 . 8 . 8 . Grunt 17 | . . 2 . 1 9 3 2 Brawler 1 | . . . . 1 . . . Sentry 2 | . . . . . 2 . . Best Kill Streak 8 | 1 1 3 . 4 4 8 2 Combat Bots Only 8 | . . 3 . 4 4 8 2 Max Kills in Single Turn 4 | 1 1 1 . 2 3 4 1 Gunslinging 1 | . . . . 1 . . . Exploded 3 | . . . . 2 3 3 . Melee . | . . . . . . . . Uniques/NPCs Destroyed . | . . . . . . . . Combat | -11 -10 -10 -10 -9 -8 -8 -8 -------- Run | Scr Mat Min Exi Min Mat Gar Mat Damage Taken 2634 | . 73 274 . 222 345 602 1118 Core 675 | . 32 55 . 32 50 221 285 Absorbed by Shields 104 | . . . . . . . 104 Core Remaining (%) 76 | 100 . . . 52 . . . Volleys Fired 88 | 6 8 20 11 12 13 8 10 Largest 3 | 2 2 2 2 2 3 2 3 Hottest 180 | 40 46 138 138 138 164 89 180 Shots Fired 189 | 12 16 40 22 25 35 15 24 Gun 75 | 12 16 8 20 16 1 . 2 Cannon 88 | . . 32 2 9 15 8 22 Launcher 26 | . . . . . 19 7 . Special . | . . . . . . . . Kinetic 75 | 12 16 8 20 16 1 . 2 Thermal 46 | . . 16 1 5 2 . 22 Explosive 26 | . . . . . 19 7 . Electromagnetic 42 | . . 16 1 4 13 8 . Robot Hit Streak 13 | 11 6 9 . 10 10 13 13 Robot Miss Streak 3 | . 3 2 . 1 3 1 1 Penetration Max . | . . . . . . . . Secondary Targets 4 | . 1 . . 3 . . . Max Gunslinging Chain 1 | . 1 . . 1 . . . Shots Hit Robots 117 | 11 8 25 . 19 23 12 19 Core Hits 72 | 4 4 11 . 13 23 12 5 Critical Kills . | . . . . . . . . Critical Parts Destroyed . | . . . . . . . . Critical Strikes 1 | . . 1 . . . . . Corrupt 1 | . . 1 . . . . . Melee Attacks . | . . . . . . . . Impact . | . . . . . . . . Slashing . | . . . . . . . . Piercing . | . . . . . . . . Sneak Attacks . | . . . . . . . . Combat Hostiles . | . . . . . . . . Follow-up Attacks . | . . . . . . . . Damage Inflicted 3647 | 83 83 589 . 397 1316 763 416 Guns 461 | 83 83 43 . 217 16 . 19 Cannons 1461 | . . 546 . 114 281 128 392 Explosions 1720 | . . . . 66 1019 635 . Melee . | . . . . . . . . Ramming 5 | . . . . . . . 5 Kinetic 461 | 83 83 43 . 217 16 . 19 Thermal 870 | . . 275 . 91 112 . 392 Explosive 1592 | . . . . . 957 635 . Electromagnetic 719 | . . 271 . 89 231 128 . Impact . | . . . . . . . . Slashing . | . . . . . . . . Piercing . | . . . . . . . . Highest Corruption 5 | . . . . 5 . . . Average Corruption 4 | . . . . 4 . . . Corruption Purged . | . . . . . . . . Corruption Blocked . | . . . . . . . . Effects 11 | . . . . 11 . . . Message Errors 3 | . . . . 3 . . . Matter Fused 4 | . . . . 4 . . . Heat Flow Errors 1 | . . . . 1 . . . Data Loss (minor) 2 | . . . . 2 . . . Misfires 1 | . . . . 1 . . . Overload Shots . | . . . . . . . . Overflow Damage 120 | . . 9 . 3 60 48 . Projectiles 12 | . . 9 . 3 . . . Explosions 108 | . . . . . 60 48 . Melee . | . . . . . . . . Knockbacks . | . . . . . . . . Impact . | . . . . . . . . Kinetic . | . . . . . . . . Secondary . | . . . . . . . . Self-Inflicted Damage 119 | . . . . 19 64 36 . Shots 8 | . . . . 1 4 3 . Rammed 1 | . . . . . . . 1 Targets Rammed 1 | . . . . . . . 1 Kicked . | . . . . . . . . Crushed . | . . . . . . . . Highest Temperature 324 | . 8 324 81 255 63 . 198 Average Temperature 84 | . 2 115 31 87 18 . 75 Received Heat Transfer 976 | . 30 63 . 30 180 171 502 Siege Activations . | . . . . . . . . Robots Corrupted 1 | . . 1 . . . . . Combat Hostiles 1 | . . 1 . . . . . Parts Fried 1 | . . . . 1 . . . Impact Corruptions . | . . . . . . . . Robots Melted . | . . . . . . . . Combat Hostiles . | . . . . . . . . Parts Melted 2 | . . 1 . . . . 1 Heat Transferred 1297 | . . 407 . 137 124 . 629 Parts Sabotaged . | . . . . . . . . Parts Stolen . | . . . . . . . . Parts Stripped . | . . . . . . . . Power Chain Reactions 2 | . . . . 1 1 . . Missiles Intercepted . | . . . . . . . . Alert | -11 -10 -10 -10 -9 -8 -8 -8 ------- Run | Scr Mat Min Exi Min Mat Gar Mat Peak Influence 607 | 10 132 260 . 135 487 607 351 Initial 277 | . 5 4 . . 37 277 241 Average 155 | 2 32 149 . 105 195 443 267 Maximum Alert Level 2 | . . 1 . . 2 2 1 Low Security (%) 70 | 100 100 76 . 100 58 . . Level 1 22 | . . 23 . . 19 58 100 Level 2 6 | . . . . . 22 41 . Level 3 . | . . . . . . . . Level 4 . | . . . . . . . . Level 5 . | . . . . . . . . High Security . | . . . . . . . . Max Security . | . . . . . . . . Squads Dispatched 7 | . . . . . 6 . 1 Investigation 1 | . . . . . 1 . . Extermination . | . . . . . . . . Reinforcement 4 | . . . . . 3 . 1 Assault . | . . . . . . . . Garrison 2 | . . . . . 2 . . Intercept . | . . . . . . . . Searches Triggered . | . . . . . . . . Construction Impeded 1 | . . . . . 1 . . Haulers Reinforced . | . . . . . . . . Active Scanning Responses . | . . . . . . . . Cargo Convoy Interrupts . | . . . . . . . . Stealth | -11 -10 -10 -10 -9 -8 -8 -8 --------- Run | Scr Mat Min Exi Min Mat Gar Mat Distress Signals 3 | . 1 . . . 1 . 1 Communications Jammed . | . . . . . . . . Distress Signals . | . . . . . . . . Times Spotted 86 | . 13 18 . 11 19 13 12 Peak Tracking Total 8 | . 6 3 . 4 5 5 8 Tactical Retreats 9 | . 1 3 . 1 2 1 1 Traps | -11 -10 -10 -10 -9 -8 -8 -8 ------- Run | Scr Mat Min Exi Min Mat Gar Mat Traps Triggered 3 | . 1 1 . . 1 . . Indirectly . | . . . . . . . . Trap Hack Attempts . | . . . . . . . . Triggered . | . . . . . . . . Disarmed . | . . . . . . . . Reprogrammed . | . . . . . . . . Reused . | . . . . . . . . Traps Extracted . | . . . . . . . . Installed . | . . . . . . . . Triggered . | . . . . . . . . Machines | -11 -10 -10 -10 -9 -8 -8 -8 ---------- Run | Scr Mat Min Exi Min Mat Gar Mat Machines Disabled 6 | . . 3 1 . 1 1 . Max in Single Turn 2 | . . 2 1 . 1 1 . Garrison Relay 1 | . . . . . . 1 . Machines Sabotaged . | . . . . . . . . Garrisons Compromised . | . . . . . . . . Overloaded Fab Kills . | . . . . . . . . Hacking | -11 -10 -10 -10 -9 -8 -8 -8 --------- Run | Scr Mat Min Exi Min Mat Gar Mat Machines Accessed 15 | . 7 1 4 . 3 . . Terminals 8 | . 6 . . . 2 . . Fabricators . | . . . . . . . . Repair Stations . | . . . . . . . . Recycling Units 1 | . 1 . . . . . . Scanalyzers . | . . . . . . . . Garrison Access 1 | . . . . . 1 . . Total Hacks 34 | . 21 1 4 . 8 . . Successful 19 | . 10 1 4 . 4 . . Failed 15 | . 11 . . . 4 . . Catastrophic 6 | . 3 . . . 3 . . Database Lockouts . | . . . . . . . . Manual 13 | . 10 . . . 3 . . Terminals 26 | . 20 . . . 6 . . Fabricators . | . . . . . . . . Repair Stations . | . . . . . . . . Recycling Units 1 | . 1 . . . . . . Scanalyzers . | . . . . . . . . Garrison Access 2 | . . . . . 2 . . Terminal Hacks 17 | . 9 1 4 . 3 . . Record 5 | . 1 . 4 . . . . Robot Analysis 1 | . 1 . . . . . . Prototype ID Bank 1 | . 1 . . . . . . Open Door 1 | . . 1 . . . . . Branch Access Points 1 | . 1 . . . . . . Emergency Access Points 1 | . 1 . . . . . . Unreport Threat 1 | . 1 . . . . . . Locate Traps 4 | . 2 . . . 2 . . Investigation Status 1 | . 1 . . . . . . Zone Layout 1 | . . . . . 1 . . Fabricator Hacks . | . . . . . . . . Repair Station Hacks . | . . . . . . . . Recycling Unit Hacks 1 | . 1 . . . . . . Retrieve Components 1 | . 1 . . . . . . Scanalyzer . | . . . . . . . . Garrison Access Hacks 1 | . . . . . 1 . . Unlock Access 1 | . . . . . 1 . . Unauthorized Hacks . | . . . . . . . . Terminals . | . . . . . . . . Fabricators . | . . . . . . . . Repair Stations . | . . . . . . . . Recycling Units . | . . . . . . . . Scanalyzers . | . . . . . . . . Garrison Access . | . . . . . . . . Data Cores Recovered . | . . . . . . . . Used . | . . . . . . . . Hacking Detections 8 | . 6 . . . 2 . . Full Trace Events . | . . . . . . . . Feedback Events . | . . . . . . . . Feedback Blocked . | . . . . . . . . Robot Schematics Acquired . | . . . . . . . . Robots Built . | . . . . . . . . Authchips . | . . . . . . . . Time . | . . . . . . . . Total Robot Build Rating . | . . . . . . . . Part Schematics Acquired . | . . . . . . . . Parts Built . | . . . . . . . . Authchips . | . . . . . . . . Time . | . . . . . . . . Total Part Build Rating . | . . . . . . . . Parts Repaired . | . . . . . . . . Time . | . . . . . . . . Parts Recycled . | . . . . . . . . Recycled Matter . | . . . . . . . . Retrieved Matter . | . . . . . . . . Retrieved Components 1 | . 1 . . . . . . Parts Scanalyzed . | . . . . . . . . Part Schematics Acquired . | . . . . . . . . Parts Damaged . | . . . . . . . . Bothacking | -11 -10 -10 -10 -9 -8 -8 -8 ------------ Run | Scr Mat Min Exi Min Mat Gar Mat Used RIF Installer 1 | . . . . . . 1 . Robots Hacked . | . . . . . . . . Non-combat . | . . . . . . . . Combat . | . . . . . . . . Robot Hacks Applied . | . . . . . . . . Relay Couplers Released 3 | . . . . . . 3 . Machine Destruction 3 | . . . . . . 3 . Fabnet Peak Effective % . | . . . . . . . . Robots Rewired . | . . . . . . . . Allies Hacked . | . . . . . . . . Hacks Repelled . | . . . . . . . . Allies | -11 -10 -10 -10 -9 -8 -8 -8 -------- Run | Scr Mat Min Exi Min Mat Gar Mat Total Allies . | . . . . . . . . Largest Group . | . . . . . . . . Highest-Rated Group . | . . . . . . . . Highest-Rated Ally . | . . . . . . . . Total Orders . | . . . . . . . . Ally Attacks . | . . . . . . . . Total Damage . | . . . . . . . . Kills . | . . . . . . . . Allies Corrupted . | . . . . . . . . Allies Melted . | . . . . . . . . Intel | -11 -10 -10 -10 -9 -8 -8 -8 ------- Run | Scr Mat Min Exi Min Mat Gar Mat Robot Analysis Total 1 | . 1 . . . . . . Derelict Logs Recovered 3 | . . 2 . 1 . . . Drone Launches . | . . . . . . . . Drone Recoveries . | . . . . . . . . Exploration | -11 -10 -10 -10 -9 -8 -8 -8 ------------- Run | Scr Mat Min Exi Min Mat Gar Mat Turns Passed 3764 | 292 451 851 538 672 377 328 255 Spaces Moved 2982 | 111 471 667 529 610 274 193 127 Core 3 | 2 1 . . . . . . Treads 373 | . . . . . 95 193 85 Legs . | . . . . . . . . Wheels 2606 | 109 470 667 529 610 179 . 42 Hover . | . . . . . . . . Flight . | . . . . . . . . Fastest Speed 50 | 50 80 95 95 90 86 152 95 Average Speed 100 | 87 83 95 95 95 111 154 134 Slowest Speed 250 | 90 250 95 95 105 160 155 155 Overloaded Moves . | . . . . . . . . Propulsion Burnouts . | . . . . . . . . Robots Hopped . | . . . . . . . . Cave-ins Triggered . | . . . . . . . . Exploration Rate (%) 57 | 6 64 99 94 99 35 39 23 Regions Visited 7 Branch Regions 3 Pre-discovered Areas . | . . . . . . . . Known Exits Taken 3 | . 1 1 . . 1 . . Unknown Exits Taken 3 | 1 . . 1 1 . . . Scrap Searched 2 | . . 1 . 1 . . . Spaces Dug . | . . . . . . . . Terrain Destroyed 187 | . . 22 . 7 105 53 . Melee . | . . . . . . . . Projectile 8 | . . 4 . 4 . . . AOE 179 | . . 18 . 3 105 53 . Terrain Rammed . | . . . . . . . . Walls Destroyed . | . . . . . . . . Machines Disabled . | . . . . . . . . Actions | -11 -10 -10 -10 -9 -8 -8 -8 --------- Run | Scr Mat Min Exi Min Mat Gar Mat Total 3584 | 292 521 844 541 677 314 206 189 Wait 421 | 163 12 150 . 40 13 . 43 Move 2974 | 110 470 666 528 609 273 191 127 Hop . | . . . . . . . . Pick Up 27 | 5 11 2 . 5 1 3 . Fast Attach 19 | 7 3 1 . . 3 2 3 Attach 14 | . . 1 . 3 5 2 3 Detach . | . . . . . . . . Swap 18 | 1 5 1 2 5 4 . . Drop 22 | . 12 3 . 3 2 . 2 Fire 88 | 6 8 20 11 12 13 8 10 Melee . | . . . . . . . . Ram . | . . . . . . . . Kick . | . . . . . . . . Crush 1 | . . . . . . . 1 Escape Stasis . | . . . . . . . . Rewire . | . . . . . . . . Trap . | . . . . . . . . Miscellaneous . | . . . . . . . . Route ------- -11/Scrapyard -10/Materials (discovered 3 exits: [*Mat] / *Min x2) -10/Mines (discovered 3 exits: [*Mat x2] / *Exi) -10/Exiles -9/Mines (discovered 2 exits: *Mat x2) -8/Materials -8/Garrison -8/Materials History --------- Turn | Location | Event 20 | -11/Scrapyard | Discovered new exit (range 16) 293 | -11/Scrapyard | Entered Materials 333 | -10/Materials | Build established: Mutant 359 | -10/Materials | Discovered new exit (range 12) 596 | -10/Materials | Identified exit to Mines 640 | -10/Materials | Discovered new exit (range 4) 744 | -10/Materials | Entered Mines 763 | -10/Mines | Met a Derelict bent on vengeance 798 | -10/Mines | Met a Derelict who couldn't figure out how to use a Trap Extractor 841 | -10/Mines | Identified exit to Exiles 910 | -10/Mines | Discovered new exit (range 13) 1095 | -10/Mines | Found a hidden stash of uninstalled traps 1393 | -10/Mines | Deemed a non-threat by the Exiles lab entrance 1419 | -10/Mines | Learned Materials terminal intel 1443 | -10/Mines | Discovered new exit (range 4) 1595 | -10/Mines | Entered Exiles 1595 | -10/Exiles | Found Exiles lab abandoned 2125 | -10/Exiles | Discovered new exit (range 10) 2133 | -10/Exiles | Entered Mines 2195 | -9/Mines | Discovered new exit (range 17) 2544 | -9/Mines | Discovered new exit (range 10) 2589 | -9/Mines | Learned Materials stockpile data 2663 | -9/Mines | Received a Rocket Launcher from a helpful Derelict 2805 | -9/Mines | Entered Materials 2805 | -8/Materials | Evolved 4 slots: Propulsion x1, Utility x2, Weapon x1 2807 | -8/Materials | Loaded intel: 12 terminal locations 3070 | -8/Materials | Garrison activated, responded to threat 3181 | -8/Materials | Identified exit to Garrison 3182 | -8/Materials | Entered Garrison 3190 | -8/Garrison | Installed Relay Interface Framework 3232 | -8/Garrison | Triggered checkpoint 3284 | -8/Garrison | Garrison Relay disabled 3404 | -8/Garrison | Destroyed 8 combat bots 3422 | -8/Garrison | Triggered checkpoint 3482 | -8/Garrison | Triggered checkpoint 3488 | -8/Garrison | Discovered new exit (range 13) 3510 | -8/Garrison | Entered Materials 3545 | -8/Materials | Core integrity fell below 50% 3743 | -8/Materials | Core integrity fell below 20% 3765 | -8/Materials | Destroyed by Y-45 Defender with Beam Rifle Last Messages --------------- 03735_ Adv. Treads destroyed. 03737_ R-06 Scavenger collects Carbon-fiber Leg. 03737_ K-01 Serf collects debris. 03742_ Critical hit (Burn: +26). 03743_ K-01 Serf collects debris. 03744_ Ion Cannon destroyed. 03746_ H-55 Commando heat damages Broken Gauss Rifle. 03746_ K-01 Serf collects debris. 03748_ Critical hit (Burn: +26). 03750_ Wheel destroyed. 03752_ K-01 Serf cleans the Fusion Modulator. 03754_ Shield Generator destroyed. 03756_ K-01 Serf cleans the Fusion Modulator. 03756_ Imp. Heat Sink destroyed. 03757_ Disposable Heat Sink destroyed. 03758_ Ion Cannon destroyed. 03759_ Critical hit (Burn: +37). 03760_ Ion Cannon destroyed. 03760_ K-01 Serf collects debris. 03760_ Imp. Ion Engine destroyed. Map ----- +----------------------------------------------------+ | ????????????????????????????????????????????# | | ????????????????????????????????????????????# | | ?????????????????????????????????????######?# ## | | ?????????????????????????????????????# !# #? | | ?????????????????????????????????????# """ # #? | | ??????????????????????????????? ?????# """ / "? | | ??????????????????????????????? ?????# """ # #? | | ??????????????????????????????? ?????# !# #? | | ??????????????????????????????? ?????# ! ?# #? | | ??????????????????????????????? ?????######?# #? | | ??????????????????????????????? ????????? ?# #? | | ??????????????????????????????? ?????????" ?# #? | | ??????????????????????????????# #????????" ## #? | | ??????????????????????????????# #??????""" ## #? | | ??????????????????????????????# #?????? ## #? | | ??????????????????????????????# #???????"" ## #? | | ??????????????????????????????# #???????"" ## #? | | ????????????????###########???# #????????" ## #? | | ????????????????# | ##### #???????? ## #? | | ????????????????# r # ! ! ##########+## ## | | ????????????????# """ """ # | | ????????????????# """ """ + [ | | ????????????????# """ """h# !!! | | ????????????????# Y # ####### !!! | | ????????????????# Y ###/###?????# !! | | ????????????????# * g @# ??????# | | ????????????????######/#### ?????# | | ??????????????????????????# ????# | | ??????????????????????????# ???# | | ??????????????????????????# ? | | ??????????????????????????# ###########+## | | ??????????????????????????# #????????????? | | ??????????????????????????# #????????????? | | ??????????????????????????###########????????????? | | ?????????????????????????????????????????????????? | | ?????????????????????????????????????????????????? | | ?????????????????????????????????????????????????? | | ?????????????????????????????????????????????????? | | | | | | | | | | | | | | | | | | | | | | | | | +----------------------------------------------------+ Best States ------------- Heat Dissipation 45 Coolant Potential 50 Energy Generation 12 Energy Capacity 265 Matter Stores 300 Matter Capacity 300 Sight Range 18 Terrain Scan Range 16 Terrain Scan Density 10 Resistance: KI 20 Resistance: TH 20 Resistance: EX 20 Resistance: EM 20 Resistance: I 20 Resistance: S 20 Resistance: P 20 Evasion (%) 44 Targeting Accuracy 8 Recoil Reduction 3 Offensive Hacking 10 Item Schematics ----------------- None Robot Schematics ------------------ None Fabricated ------------ Nothing Alien Tech Used ----------------- None Achievements -------------- None Challenges ------------ None Game ------ Seed AblativeMicrowarpBoosters Manual? 0 Play Time 00:45:39 Cumulative 61.6 hours Start 2022.06.02 @ 23:41:09 End 2022.06.03 @ 00:26:54 Sessions 1 Manual Loads 0 Difficulty Adventurer Special Mode None Game No. 31 Rogue 0 Adventurer 31 Explorer 0 Win Type - Total 0 Types 0/0/0/0/0/0/0/0/0 Lore% 31 Gallery% 35 Achievement% 28 Wizard Run 0 Options --------- ASCII 0 Keyboard 0 Movement Numpad Keybinds 0 Fullscreen 1 Font 18/SmallcapsGlow Map View 76x50 Tactical HUD 1 Map Filters NONE Filters NONE Steam 1 RUN: 0f6c5d67-d54c-4359-ab4a-c56171ba2df3